lending/lending_fUSD_20250808
["ID","MTS","AMOUNT","RATE_DAILY","PERIOD"]
[378030814,1754674336920,-591.98,0.00020583,2]
[378030815,1754674336929,-400.0,0.00020583,2]
[378030816,1754674336939,-400.0,0.00020583,2]
[378030817,1754674336948,-400.0,0.00020583,2]
[378030818,1754674336957,-400.0,0.00020583,2]
[378030819,1754674336967,-820.42,0.00020583,2]
[378030820,1754674336978,-540.05,0.00020583,2]
[378030821,1754674336987,-444.75,0.00020583,2]
[378030822,1754674336996,-400.0,0.00020583,2]
[378030823,1754674337005,-475.1,0.00020583,2]
[378030824,1754674337014,-1065.2,0.00020583,2]
[378030825,1754674337024,-663.95,0.00020583,2]
[378030826,1754674337033,-664.58,0.00020583,2]
[378030827,1754674337043,-552.2,0.00020583,2]
[378030828,1754674337051,-795.59,0.00020583,2]
[378030829,1754674337060,-400.0,0.00020583,2]
[378030830,1754674337069,-1009.8,0.00020583,2]
[378030831,1754674337080,-400.0,0.00020583,2]
[378030832,1754674337094,-400.0,0.00020583,2]
[378030833,1754674337107,-400.0,0.00020583,2]
[378030834,1754674337116,-400.0,0.00020583,2]
[378030835,1754674337125,-758.91,0.00020583,2]
[378030836,1754674337135,-400.0,0.00020583,2]
[378030837,1754674337144,-400.0,0.00020583,2]
[378030838,1754674337154,-405.9,0.00020583,2]
[378030839,1754674337163,-794.09,0.00020583,2]
[378030840,1754674337173,-860.42,0.00020583,2]
[378030841,1754674337185,-497.38,0.00020583,2]
[378030842,1754674337197,-400.0,0.00020583,2]
[378030843,1754674337207,-675.98,0.00020583,2]
[378030844,1754674337217,-400.0,0.00020583,2]
[378030845,1754674337228,-1322.96,0.00020583,2]
[378030846,1754674337238,-515.94,0.00020583,2]
[378030847,1754674337247,-492.09,0.00020583,2]
[378030848,1754674337256,-1269.65,0.00020583,2]
[378030849,1754674337265,-1150.11,0.00020583,2]
[378030850,1754674337275,-729.76,0.00020583,2]
[378030851,1754674337284,-400.0,0.00020583,2]
[378030852,1754674337293,-786.33,0.00020583,2]
[378030853,1754674337303,-400.0,0.00020583,2]
[378030854,1754674337312,-400.0,0.00020583,2]
[378030855,1754674337322,-400.0,0.00020583,2]
[378030856,1754674337331,-400.0,0.00020583,2]
[378030857,1754674337340,-933.94,0.00020583,2]
[378030858,1754674337351,-1309.0,0.00020583,2]
[378030859,1754674337360,-630.93,0.00020583,2]
[378030860,1754674337370,-1106.53,0.00020583,2]
[378030861,1754674337379,-1201.36,0.00020583,2]
[378030862,1754674337388,-400.0,0.00020583,2]
[378030863,1754674337398,-623.4,0.00020583,2]
[378030864,1754674337409,-1959.17,0.00020583,2]
[378030865,1754674337419,-400.0,0.00020583,2]
[378030866,1754674337428,-948.04,0.00020583,2]
[378030867,1754674337437,-1232.12,0.00020583,2]
[378030868,1754674337446,-501.95,0.00020583,2]
[378030869,1754674337456,-400.0,0.00020583,2]
[378030870,1754674337465,-1029.5,0.00020583,2]
[378030871,1754674337476,-400.0,0.00020583,2]
[378030872,1754674337485,-400.0,0.00020583,2]
[378030873,1754674337494,-1075.7,0.00020583,2]
[378030874,1754674337503,-1017.42,0.00020583,2]
[378030875,1754674337512,-400.0,0.00020583,2]
[378030876,1754674337522,-467.67,0.00020583,2]
[378030877,1754674337531,-743.32,0.00020583,2]
[378030878,1754674337540,-466.11,0.00020583,2]
[378030879,1754674337551,-496.93,0.00020583,2]
[378030880,1754674337561,-400.0,0.00020583,2]
[378030881,1754674337571,-400.0,0.00020583,2]
[378030882,1754674337581,-1260.4,0.00020583,2]
[378030883,1754674337591,-470.18,0.00020583,2]
[378030884,1754674337600,-400.0,0.00020583,2]
[378030885,1754674337610,-641.02,0.00020583,2]
[378030886,1754674337620,-3797.91,0.00020583,2]
[378030887,1754674337632,-400.0,0.00020583,2]
[378030888,1754674337641,-400.0,0.00020583,2]
[378030889,1754674337650,-1052.14,0.00020583,2]
[378030890,1754674337660,-889.41,0.00020583,2]
[378030891,1754674337669,-739.75,0.00020583,2]
[378030892,1754674337679,-1099.06,0.00020583,2]
[378030893,1754674337689,-3365.51,0.00020583,2]
[378030894,1754674337699,-1630.68,0.00020583,2]
[378030895,1754674337708,-1750.29,0.00020583,2]
[378030896,1754674337717,-2289.35,0.00020583,2]
[378030897,1754674337729,-1124.14,0.00020583,2]
[378030898,1754674337739,-400.0,0.00020583,2]
[378030899,1754674337749,-838.76,0.00020583,2]
[378030900,1754674337758,-1564.85,0.00020583,2]
[378030901,1754674337768,-752.21,0.00020583,2]
[378030902,1754674337778,-1259.02,0.00020583,2]
[378030903,1754674337788,-1360.45,0.00020583,2]
[378030904,1754674337797,-447.46,0.00020583,2]
[378030905,1754674337807,-400.0,0.00020583,2]
[378030906,1754674337816,-400.0,0.00020583,2]
[378030907,1754674337825,-457.11,0.00020583,2]
[378030908,1754674337835,-907.31,0.00020583,2]
[378030909,1754674337844,-635.96,0.00020583,2]
[378030910,1754674337853,-516.43,0.00020583,2]
[378030911,1754674337862,-2511.44,0.00020583,2]
[378030912,1754674337872,-841.87,0.00020583,2]
[378030913,1754674337881,-400.0,0.00020583,2]
[378030914,1754674337890,-909.41,0.00020583,2]
[378030915,1754674337899,-400.0,0.00020583,2]
[378030916,1754674337909,-633.54,0.00020583,2]
[378030917,1754674337918,-1757.88,0.00020583,2]
[378030918,1754674338021,-3698.85,0.00020583,2]
[378030919,1754674338031,-400.0,0.00020583,2]
[378030920,1754674338041,-1660.57,0.00020583,2]
[378030921,1754674338050,-748.76,0.00020583,2]
[378030922,1754674338060,-466.12,0.00020583,2]
[378030923,1754674338069,-724.03,0.00020583,2]
[378030924,1754674338081,-2130.8,0.00020583,2]
[378030925,1754674338098,-420.45,0.00020583,2]
[378030926,1754674338107,-1000.99,0.00020583,2]
[378030927,1754674338116,-956.66,0.00020583,2]
[378030928,1754674338126,-825.21,0.00020583,2]
[378030929,1754674338136,-1301.7,0.00020583,2]
[378030930,1754674338145,-400.0,0.00020583,2]
[378030931,1754674338155,-1094.31,0.00020583,2]
[378030932,1754674338165,-498.58,0.00020583,2]
[378030933,1754674338174,-815.06,0.00020583,2]
[378030934,1754674338184,-1195.76,0.00020583,2]
[378030935,1754674338194,-442.27,0.00020583,2]
[378030936,1754674338203,-552.06,0.00020583,2]
[378030937,1754674338212,-484.27,0.00020583,2]
[378030938,1754674338221,-400.0,0.00020583,2]
[378030939,1754674338234,-624.41,0.00020583,2]
[378030940,1754674338244,-2556.32,0.00020583,2]
[378030941,1754674338254,-844.68,0.00020583,2]
[378030942,1754674338263,-440.75,0.00020583,2]
[378030943,1754674338272,-1182.8,0.00020583,2]
[378030944,1754674338282,-1893.37,0.00020583,2]
[378030945,1754674338291,-400.0,0.00020583,2]
[378030946,1754674338301,-520.64,0.00020583,2]
[378030947,1754674338311,-3101.03,0.00020583,2]
[378030948,1754674338321,-524.52,0.00020583,2]
[378030949,1754674338330,-616.08,0.00020583,2]
[378030950,1754674338340,-732.88,0.00020583,2]
[378030951,1754674338349,-856.38,0.00020583,2]
[378030952,1754674338358,-4832.78,0.00020583,2]
[378030953,1754674338368,-627.0,0.00020583,2]
[378030954,1754674338377,-242.95,0.00020583,2]
[378030955,1754674338387,-952.86,0.00020583,2]
[378030956,1754674338396,-400.0,0.00020583,2]
[378030957,1754674338406,-1841.68,0.00020583,2]
[378030958,1754674338415,-480.32,0.00020583,2]
[378030959,1754674338424,-3627.65,0.00020583,2]
[378030960,1754674338434,-400.0,0.00020583,2]
[378030961,1754674338443,-803.51,0.00020583,2]
[378030962,1754674338452,-429.23,0.00020583,2]
[378030963,1754674338462,-467.89,0.00020583,2]
[378030964,1754674338472,-781.89,0.00020583,2]
[378030965,1754674338484,-1771.62,0.00020583,2]
[378030966,1754674338494,-1163.42,0.00020583,2]
[378030967,1754674338502,-585.49,0.00020583,2]
[378030968,1754674338511,-784.71,0.00020583,2]
[378030969,1754674338521,-842.16,0.00020583,2]
[378030970,1754674338530,-971.72,0.00020583,2]
[378030971,1754674338539,-437.29,0.00020583,2]
[378030972,1754674338548,-498.13,0.00020583,2]
[378030973,1754674338557,-1364.1,0.00020583,2]
[378030974,1754674338567,-400.0,0.00020583,2]
[378030975,1754674338577,-4194.96,0.00020583,2]
[378030976,1754674338587,-3720.86,0.00020583,2]
[378030977,1754674338596,-482.49,0.00020583,2]
[378030978,1754674338605,-932.41,0.00020583,2]
[378030979,1754674338614,-400.0,0.00020583,2]
[378030980,1754674338623,-467.73,0.00020583,2]
[378030981,1754674338633,-694.04,0.00020583,2]
[378030982,1754674338642,-785.65,0.00020583,2]
[378030983,1754674338652,-1073.17,0.00020583,2]
[378030984,1754674338661,-2564.99,0.00020583,2]
[378030985,1754674338671,-1271.83,0.00020583,2]
[378030986,1754674338681,-400.0,0.00020583,2]
[378030987,1754674338690,-501.58,0.00020583,2]
[378030988,1754674338699,-561.21,0.00020583,2]
[378030989,1754674338709,-695.37,0.00020583,2]
[378030990,1754674338718,-1291.31,0.00020583,2]
[378030991,1754674338730,-400.0,0.00020583,2]
[378030992,1754674338739,-1430.86,0.00020583,2]
[378030993,1754674338748,-3151.61,0.00020583,2]
[378030994,1754674338758,-836.4,0.00020583,2]
[378030995,1754674338768,-421.02,0.00020583,2]
[378030996,1754674338778,-850.6,0.00020583,2]
[378030997,1754674338787,-2829.87,0.00020583,2]
[378030998,1754674338796,-400.0,0.00020583,2]
[378030999,1754674338806,-3147.45,0.00020583,2]
[378031000,1754674338815,-2412.01,0.00020583,2]
[378031001,1754674338825,-3174.96,0.00020583,2]
[378031002,1754674338836,-1344.29,0.00020583,2]
[378031003,1754674338845,-400.0,0.00020583,2]
[378031004,1754674338855,-624.0319654,0.00020584,2]
[378031005,1754674338864,-475.15,0.00020584,2]
[378031006,1754674338874,-400.0,0.00020584,2]
[378031007,1754674338883,-400.0,0.00020584,2]
[378031008,1754674338892,-400.0,0.00020584,2]
[378031009,1754674338902,-400.0,0.00020584,2]
[378031010,1754674338911,-400.0,0.00020584,2]
[378031011,1754674338921,-400.0,0.00020584,2]
[378031012,1754674338930,-400.0,0.00020584,2]
[378031013,1754674338939,-400.0,0.00020584,2]
[378031014,1754674338948,-400.0,0.00020584,2]
[378031015,1754674338957,-300.0,0.00020584,2]
[378031016,1754674338967,-400.0,0.00020584,2]
[378031017,1754674338977,-613.14,0.00020584,2]
[378031018,1754674338986,-487.53,0.00020584,2]
[378031019,1754674338995,-317.47501305,0.00020584,2]
[378031020,1754674339005,-400.0,0.00020584,2]
[378031021,1754674339014,-400.0,0.00020584,2]
[378031022,1754674339023,-400.0,0.00020584,2]
[378031023,1754674339033,-470.26,0.00020584,2]
[378031024,1754674339042,-400.0,0.00020584,2]
[378031025,1754674339052,-400.0,0.00020584,2]
[378031026,1754674339061,-400.0,0.00020584,2]
[378031027,1754674339070,-400.0,0.00020584,2]
[378031028,1754674339079,-400.0,0.00020584,2]
[378031029,1754674339092,-400.0,0.00020584,2]
[378031030,1754674339102,-462.27,0.00020584,2]
[378031031,1754674339111,-580.1,0.00020584,2]
[378031032,1754674339120,-400.0,0.00020584,2]
[378031033,1754674339130,-400.0,0.00020584,2]
[378031034,1754674339139,-400.0,0.00020584,2]
[378031035,1754674339149,-400.0,0.00020584,2]
[378031036,1754674339158,-479.7,0.00020584,2]
[378031037,1754674339169,-568.03,0.00020584,2]
[378031038,1754674339178,-400.0,0.00020584,2]
[378031039,1754674339187,-400.0,0.00020584,2]
[378031040,1754674339197,-421.44,0.00020584,2]
[378031041,1754674339206,-418.64,0.00020584,2]
[378031042,1754674339216,-504.49,0.00020584,2]
[378031043,1754674339227,-700.9,0.00020584,2]
[378031044,1754674339236,-520.77,0.00020584,2]
[378031045,1754674339245,-400.0,0.00020584,2]
[378031046,1754674339254,-400.0,0.00020584,2]
[378031047,1754674339264,-400.0,0.00020584,2]
[378031048,1754674339273,-400.0,0.00020584,2]
[378031049,1754674339282,-400.0,0.00020584,2]
[378031050,1754674339291,-400.0,0.00020584,2]
[378031051,1754674339300,-400.0,0.00020584,2]
[378031052,1754674339310,-400.0,0.00020584,2]
[378031053,1754674339319,-400.0,0.00020584,2]
[378031054,1754674339327,-400.0,0.00020584,2]
[378031055,1754674339336,-484.85,0.00020584,2]
[378031056,1754674339345,-400.0,0.00020584,2]
[378031057,1754674339354,-432.17,0.00020584,2]
[378031058,1754674339363,-400.0,0.00020584,2]
[378031059,1754674339373,-1178.17,0.00020584,2]
[378031060,1754674339382,-456.42,0.00020584,2]
[378031061,1754674339391,-400.0,0.00020584,2]
[378031062,1754674339401,-400.0,0.00020584,2]
[378031063,1754674339410,-534.77,0.00020584,2]
[378031064,1754674339419,-400.0,0.00020584,2]
[378031065,1754674339428,-400.0,0.00020584,2]
[378031066,1754674339438,-4517.84,0.00020584,2]
[378031067,1754674339447,-435.31,0.00020584,2]
[378031068,1754674339456,-400.0,0.00020584,2]
[378031069,1754674339465,-477.72,0.00020584,2]
[378031070,1754674339474,-400.0,0.00020584,2]
[378031071,1754674339485,-400.0,0.00020584,2]
[378031072,1754674339493,-4062.08,0.00020584,2]
[378031073,1754674339503,-400.0,0.00020584,2]
[378031074,1754674339513,-400.0,0.00020584,2]
[378031075,1754674339523,-400.0,0.00020584,2]
[378031076,1754674339533,-400.0,0.00020584,2]
[378031077,1754674339542,-735.5,0.00020584,2]
[378031078,1754674339551,-530.84747111,0.00020584,2]
[378031079,1754674339560,-1368.24,0.00020584,2]
[378031080,1754674339569,-400.0,0.00020584,2]
[378031081,1754674339579,-400.0,0.00020584,2]
[378031082,1754674339588,-400.0,0.00020584,2]
[378031083,1754674339597,-400.0,0.00020584,2]
[378031084,1754674339607,-400.0,0.00020584,2]
[378031085,1754674339617,-400.0,0.00020584,2]
[378031086,1754674339626,-1187.72,0.00020584,2]
[378031087,1754674339635,-400.0,0.00020584,2]
[378031088,1754674339644,-450.77,0.00020584,2]
[378031089,1754674339653,-400.0,0.00020584,2]
[378031090,1754674339662,-400.0,0.00020584,2]
[378031091,1754674339671,-400.0,0.00020584,2]
[378031092,1754674339681,-1471.83,0.00020584,2]
[378031093,1754674339690,-557.2,0.00020584,2]
[378031094,1754674339699,-400.0,0.00020584,2]
[378031095,1754674339708,-400.0,0.00020584,2]
[378031096,1754674339718,-436.5,0.00020584,2]
[378031097,1754674339728,-439.47,0.00020584,2]
[378031098,1754674339737,-1359.72,0.00020584,2]
[378031099,1754674339747,-400.0,0.00020584,2]
[378031100,1754674339756,-400.0,0.00020584,2]
[378031101,1754674339765,-1098.38,0.00020584,2]
[378031102,1754674339774,-400.0,0.00020584,2]
[378031103,1754674339783,-400.0,0.00020584,2]
[378031104,1754674339792,-505.49,0.00020584,2]
[378031105,1754674339801,-493.47,0.00020584,2]
[378031106,1754674339810,-400.0,0.00020584,2]
[378031107,1754674339819,-400.0,0.00020584,2]
[378031108,1754674339828,-412.55,0.00020584,2]
[378031109,1754674339837,-496.49,0.00020584,2]
[378031110,1754674339847,-808.39,0.00020584,2]
[378031111,1754674339855,-400.0,0.00020584,2]
[378031112,1754674339864,-400.0,0.00020584,2]
[378031113,1754674339874,-400.0,0.00020584,2]
[378031114,1754674339883,-1155.05,0.00020584,2]
[378031115,1754674339893,-400.0,0.00020584,2]
[378031116,1754674339902,-485.06,0.00020584,2]
[378031117,1754674339912,-521.07,0.00020584,2]
[378031118,1754674339921,-643.05,0.00020584,2]
[378031119,1754674339930,-400.0,0.00020584,2]
[378031120,1754674339939,-489.19,0.00020584,2]
[378031121,1754674339949,-760.76,0.00020584,2]
[378031122,1754674339958,-576.62,0.00020584,2]
[378031123,1754674339967,-437.71,0.00020584,2]
[378031124,1754674339977,-704.59,0.00020584,2]
[378031125,1754674339986,-919.49,0.00020584,2]
[378031126,1754674339995,-1259.56,0.00020584,2]
[378031127,1754674340004,-508.27,0.00020584,2]
[378031128,1754674340013,-400.0,0.00020584,2]
[378031129,1754674340022,-400.0,0.00020584,2]
[378031130,1754674340031,-1124.56,0.00020584,2]
[378031131,1754674340040,-2507.35,0.00020584,2]
[378031132,1754674340049,-424.0,0.00020584,2]
[378031133,1754674340058,-400.0,0.00020584,2]
[378031134,1754674340067,-1219.23,0.00020584,2]
[378031135,1754674340076,-400.0,0.00020584,2]
[378031136,1754674340087,-400.0,0.00020584,2]
[378031137,1754674340098,-738.95,0.00020584,2]
[378031138,1754674340106,-739.75,0.00020584,2]
[378031139,1754674340115,-705.62,0.00020584,2]
[378031140,1754674340124,-429.41,0.00020584,2]
[378031141,1754674340134,-408.09,0.00020584,2]
[378031142,1754674340143,-22590.06,0.00020584,2]
[378031143,1754674340152,-400.0,0.00020584,2]
[378031144,1754674340162,-400.0,0.00020584,2]
[378031145,1754674340172,-444.79,0.00020584,2]
[378031146,1754674340181,-400.0,0.00020584,2]
[378031147,1754674340190,-1009.83,0.00020584,2]
[378031148,1754674340201,-400.0,0.00020584,2]
[378031149,1754674340211,-387.44975307,0.00020584,2]
[378031150,1754674340220,-612.57,0.00020584,2]
[378031151,1754674340231,-400.0,0.00020584,2]
[378031152,1754674340239,-1019.52,0.00020584,2]
[378031153,1754674340249,-412.85,0.00020584,2]
[378031154,1754674340257,-400.0,0.00020584,2]
[378031155,1754674340266,-400.0,0.00020584,2]
[378031156,1754674340275,-602.24,0.00020584,2]
[378031157,1754674340285,-400.0,0.00020584,2]
[378031158,1754674340294,-400.0,0.00020584,2]
[378031159,1754674340303,-702.83,0.00020584,2]
[378031160,1754674340311,-400.0,0.00020584,2]
[378031161,1754674340320,-400.0,0.00020584,2]
[378031162,1754674340329,-401.02,0.00020584,2]
[378031163,1754674340339,-408.56064806,0.00020584,2]
[378031164,1754674340348,-480.03,0.00020584,2]
[378031165,1754674340358,-414.37,0.00020584,2]
[378031166,1754674340367,-400.0,0.00020584,2]
[378031167,1754674340376,-420.84,0.00020584,2]
[378031168,1754674340385,-469.13,0.00020584,2]
[378031169,1754674340394,-1156.43,0.00020584,2]
[378031170,1754674340404,-1173.27,0.00020584,2]
[378031171,1754674340414,-414.41,0.00020584,2]
[378031172,1754674340423,-2082.95,0.00020584,2]
[378031173,1754674340433,-400.0,0.00020584,2]
[378031174,1754674340442,-1355.51,0.00020584,2]
[378031175,1754674340451,-400.0,0.00020584,2]
[378031176,1754674340461,-400.0,0.00020584,2]
[378031177,1754674340470,-712.97,0.00020584,2]
[378031178,1754674340483,-400.0,0.00020584,2]
[378031179,1754674340492,-1433.19,0.00020584,2]
[378031180,1754674340501,-400.0,0.00020584,2]
[378031181,1754674340510,-1279.98,0.00020584,2]
[378031182,1754674340520,-400.0,0.00020584,2]
[378031183,1754674340529,-2544.43,0.00020584,2]
[378031184,1754674340538,-3304.91,0.00020584,2]
[378031185,1754674340547,-545.33,0.00020584,2]
[378031186,1754674340557,-1361.67,0.00020584,2]
[378031187,1754674340566,-400.0,0.00020584,2]
[378031188,1754674340576,-680.15,0.00020584,2]
[378031189,1754674340585,-446.42,0.00020584,2]
[378031190,1754674340594,-1015.86,0.00020584,2]
[378031191,1754674340603,-400.0,0.00020584,2]
[378031192,1754674340613,-400.0,0.00020584,2]
[378031193,1754674340622,-400.0,0.00020584,2]
[378031194,1754674340631,-472.84,0.00020584,2]
[378031195,1754674340640,-6584.79,0.00020584,2]
[378031196,1754674340650,-400.0,0.00020584,2]
[378031197,1754674340659,-645.58,0.00020584,2]
[378031198,1754674340669,-293.53253665,0.00020584,2]
[378031199,1754674340678,-400.0,0.00020584,2]
[378031200,1754674340688,-434.44,0.00020584,2]
[378031201,1754674340697,-510.44,0.00020584,2]
[378031202,1754674340706,-400.0,0.00020584,2]
[378031203,1754674340715,-400.0,0.00020584,2]
[378031204,1754674340725,-400.0,0.00020584,2]
[378031205,1754674340736,-637.96,0.00020584,2]
[378031206,1754674340745,-400.0,0.00020584,2]
[378031207,1754674340755,-4087.5,0.00020584,2]
[378031208,1754674340764,-400.0,0.00020584,2]
[378031209,1754674340774,-1000.0,0.00020584,2]
[378031210,1754674340784,-1167.59,0.00020584,2]
[378031211,1754674340794,-839.14,0.00020584,2]
[378031212,1754674340803,-423.67,0.00020584,2]
[378031213,1754674340812,-400.0,0.00020584,2]
[378031214,1754674340822,-1923.32,0.00020584,2]
[378031215,1754674340831,-2534.72,0.00020584,2]
[378031216,1754674340841,-3221.54,0.00020584,2]
[378031217,1754674340850,-400.0,0.00020584,2]
[378031218,1754674340859,-2686.59,0.00020584,2]
[378031219,1754674340869,-2767.77,0.00020584,2]
[378031220,1754674340879,-4079.49,0.00020584,2]
[378031221,1754674340889,-1045.66,0.00020584,2]
[378031222,1754674340899,-3290.29,0.00020585,2]
[378031223,1754674340908,-2369.18,0.00020585,2]
[378031224,1754674340917,-13166.57,0.00020585,2]
[378031225,1754674340926,-1590.7,0.00020585,2]
[378031226,1754674340936,-1258.97,0.00020585,2]
[378031227,1754674340945,-2052.34,0.00020585,2]
[378031228,1754674340954,-508.01,0.00020585,2]
[378031229,1754674340963,-5234.06,0.00020585,2]
[378031230,1754674340973,-400.0,0.00020585,2]
[378031231,1754674340983,-2455.21,0.00020585,2]
[378031232,1754674340993,-1846.96,0.00020585,2]
[378031233,1754674341002,-1243.92,0.00020585,2]
[378031234,1754674341012,-1638.01,0.00020585,2]
[378031235,1754674341021,-1639.76,0.00020585,2]
[378031236,1754674341031,-1386.66,0.00020585,2]
[378031237,1754674341040,-2763.15,0.00020585,2]
[378031238,1754674341050,-3536.52,0.00020585,2]
[378031239,1754674341060,-2140.87,0.00020585,2]
[378031240,1754674341069,-1711.31,0.00020585,2]
[378031241,1754674341079,-449.95,0.00020585,2]
[378031242,1754674341090,-2265.84,0.00020596,2]
[378031243,1754674341099,-25000.0,0.00020597,2]
[378031244,1754674341109,-1313.11,0.00020646,2]
[378031245,1754674341118,-5000.0,0.00020668,2]
[378031246,1754674341127,-5000.0,0.00020693,2]
[378031247,1754674341137,-22167.19245192,0.000207,2]
[378031248,1754674341147,-250.0,0.000207,2]
[378031249,1754674341157,-250.0,0.000207,2]
[378031250,1754674341166,-250.0,0.000207,2]
[378031251,1754674341177,-250.0,0.000207,2]
[378031252,1754674341186,-250.0,0.000207,2]
[378031253,1754674341195,-250.0,0.000207,2]
[378031254,1754674341204,-250.0,0.000207,2]
[378031255,1754674341214,-250.0,0.000207,2]
[378031256,1754674341223,-250.0,0.000207,2]
[378031257,1754674341234,-250.0,0.000207,2]
[378031258,1754674341244,-5000.0,0.00020743,2]
[378031259,1754674341253,-962.45,0.00020817,2]
[378031260,1754674341263,-1000.0,0.00020819,2]
[378031261,1754674341272,-500.0,0.00020821,2]
[378031262,1754674341281,-664.81,0.00020821,2]
[378031263,1754674341291,-168.3888056,0.00020822,2]
[378031264,1754674341301,-325.23,0.00020855,2]
[378031265,1754674341310,-400.0,0.00020856,2]
[378031266,1754674341320,-400.0,0.00020856,2]
[378031267,1754674341330,-661.11,0.00020856,2]
[378031268,1754674341340,-2954.91,0.00020856,2]
[378031269,1754674341350,-2275.54,0.00020856,2]
[378031270,1754674341359,-946.48,0.00020856,2]
[378031271,1754674341369,-848.32,0.00020856,2]
[378031272,1754674341379,-7691.76,0.00020856,2]
[378031273,1754674341388,-1032.75,0.00020856,2]
[378031274,1754674341397,-600.19,0.00020856,2]
[378031275,1754674341407,-1855.93,0.00020856,2]
[378031276,1754674341417,-675.93,0.00020856,2]
[378031277,1754674341427,-5291.16,0.00020856,2]
[378031278,1754674341437,-2731.24,0.00020856,2]
[378031279,1754674341446,-3569.89,0.00020856,2]
[378031280,1754674341456,-643.22,0.00020856,2]
[378031281,1754674341465,-400.0,0.00020856,2]
[378031282,1754674341475,-1935.23,0.00020856,2]
[378031283,1754674341486,-821.85,0.00020856,2]
[378031284,1754674341495,-774.94,0.00020856,2]
[378031285,1754674341505,-538.44,0.00020856,2]
[378031286,1754674341515,-447.97,0.00020856,2]
[378031287,1754674341525,-500.0,0.00020857,2]
[378031288,1754674341534,-947.0,0.00020857,2]
[378031289,1754674341544,-1798.0,0.00020857,2]
[378031290,1754674341554,-977.0,0.00020857,2]
[378031291,1754674341563,-183.659282,0.00020857,2]
[378031292,1754674341573,-1000.0,0.00020857,2]
[378031293,1754674341583,-2162.28,0.00020857,2]
[378031294,1754674341592,-788.52,0.00020857,2]
[378031295,1754674341602,-606.57,0.00020857,2]
[378031296,1754674341612,-691.64,0.00020857,2]
[378031297,1754674341621,-504.23,0.00020857,2]
[378031298,1754674341631,-711.68,0.00020857,2]
[378031299,1754674341640,-672.8,0.00020857,2]
[378031300,1754674341650,-767.72,0.00020857,2]
[378031301,1754674341660,-411.37,0.00020857,2]
[378031302,1754674341669,-692.39,0.00020857,2]
[378031303,1754674341679,-460.18,0.00020857,2]
[378031304,1754674341689,-680.33,0.00020857,2]
[378031305,1754674341698,-418.64,0.00020857,2]
[378031306,1754674341708,-400.0,0.00020857,2]
[378031307,1754674341718,-1053.65,0.00020857,2]
[378031308,1754674341728,-591.98,0.00020857,2]
[378031309,1754674341738,-400.0,0.00020857,2]
[378031310,1754674341747,-400.0,0.00020857,2]
[378031311,1754674341757,-345.5375367,0.00020857,2]
[378031312,1754674341767,-400.0,0.00020857,2]
[378031313,1754674341777,-820.42,0.00020857,2]